[Event "7th Paul Keres Memorial Festival 2026 Classic A"]
[Site "ESTONIA Resort Hotel & Spa conference center, EE"]
[Date "2026.07.29"]
[Round "5"]
[White "Kirk, Ezra"]
[Black "Ter-Avetisjana, Agnesa Stepania"]
[Result "1-0"]
[Board "7"]
[TimeControl "5400+30"]
[WhiteFideId "600067"]
[BlackFideId "11614900"]
[WhiteElo "2378"]
[BlackElo "2141"]
[WhiteTitle "IM"]
[BlackTitle "WIM"]
[WhiteClock "1:30:22"]
[BlackClock "1:30:31"]
[Variant "Standard"]
[EndDate "2026.07.29"]
[EndTime "16:49:00"]

1. Nf3 {[%clk 1:30:22]}  d5 {[%clk 0:00:00]} 2. c4 {[%clk 1:30:22]}  c6 {[%clk 1:30:31]} 3. g3 {[%clk 1:30:22]}  Nf6 {[%clk 1:30:31]}
4. Bg2 {[%clk 1:30:22]}  Bf5 {[%clk 1:30:31]} 5. Qb3 {[%clk 1:30:22]}  Qb6 {[%clk 1:30:31]} 6. d3 {[%clk 1:30:22]}  e6 {[%clk 1:30:31]}
7. Be3 {[%clk 1:30:22]}  Qxb3 {[%clk 1:30:31]} 8. axb3 {[%clk 1:30:22]}  a6 {[%clk 1:30:31]} 9. Nh4 {[%clk 1:30:22]}  Bg6 {[%clk 1:30:31]}
10. h3 {[%clk 1:30:22]}  Nbd7 {[%clk 1:30:31]} 11. Nc3 {[%clk 1:30:22]}  Be7 {[%clk 1:30:31]} 12. O-O {[%clk 1:30:22]}  O-O {[%clk 1:30:31]}
13. Nxg6 {[%clk 1:30:22]}  hxg6 {[%clk 1:30:31]} 14. d4 {[%clk 1:30:22]}  Nb6 {[%clk 1:30:31]} 15. cxd5 {[%clk 1:30:22]}  exd5 {[%clk 1:30:31]}
16. Na4 {[%clk 1:30:22]}  Nbd7 {[%clk 1:30:31]} 17. Bf4 {[%clk 1:30:22]}  Rfe8 {[%clk 1:30:31]} 18. g4 {[%clk 1:30:22]}  Bb4 {[%clk 1:30:31]}
19. e3 {[%clk 1:30:22]}  Ne4 {[%clk 1:30:31]} 20. Bxe4 {[%clk 1:30:22]}  Rxe4 {[%clk 1:30:31]} 21. Nc3 {[%clk 1:30:22]}  Re6 {[%clk 1:30:31]}
22. h4 {[%clk 1:30:22]}  f6 {[%clk 1:30:31]} 23. Kg2 {[%clk 1:30:22]}  Kf7 {[%clk 1:30:31]} 24. Rad1 {[%clk 1:30:22]}  Rh8 {[%clk 1:30:31]}
25. Rh1 {[%clk 1:30:22]}  Ree8 {[%clk 1:30:31]} 26. Ne2 {[%clk 1:30:22]}  Rh7 {[%clk 1:30:31]} 27. Nc1 {[%clk 1:30:22]}  Nf8 {[%clk 1:30:31]}
28. Nd3 {[%clk 1:30:22]}  Be7 {[%clk 1:30:31]} 29. b4 {[%clk 1:30:22]}  Ne6 {[%clk 1:30:31]} 30. Bg3 {[%clk 1:30:22]}  Rhh8 {[%clk 1:30:31]}
31. Nc5 {[%clk 1:30:22]}  Nd8 {[%clk 1:30:31]} 32. Rhe1 {[%clk 1:30:22]}  a5 {[%clk 1:30:31]} 33. bxa5 {[%clk 1:30:22]}  Bxc5 {[%clk 1:30:31]}
34. dxc5 {[%clk 1:30:22]}  Re4 {[%clk 1:30:31]} 35. Rd4 {[%clk 1:30:22]}  Rhe8 {[%clk 1:30:31]} 36. Red1 {[%clk 1:30:22]}  Rxd4 {[%clk 1:30:31]}
37. Rxd4 {[%clk 1:30:22]}  Re4 {[%clk 1:30:31]} 38. Rxe4 {[%clk 1:30:22]}  dxe4 {[%clk 1:30:31]} 39. b4 {[%clk 1:30:22]}  Ke6 {[%clk 1:30:31]}
40. Bc7 {[%clk 1:30:22]}  Nf7 {[%clk 1:30:31]} 41. b5 {[%clk 1:30:22]}  Kd7 {[%clk 1:30:31]} 42. b6 {[%clk 1:30:22]}  Nh6 {[%clk 1:30:31]}
43. Bf4 {[%clk 1:30:22]}  Kc8 {[%clk 1:30:31]} 44. Bxh6 {[%clk 1:30:22]}  gxh6 {[%clk 1:30:31]} 45. h5 {[%clk 1:30:22]} 1-0

[Event "7th Paul Keres Memorial Festival 2026 Classic A"]
[Site "ESTONIA Resort Hotel & Spa conference center, EE"]
[Date "2026.07.29"]
[Round "5"]
[White "Berzina, Ilze"]
[Black "Grave, Jacob Templen"]
[Result "1/2-1/2"]
[Board "8"]
[TimeControl "5400+30"]
[WhiteFideId "11601345"]
[BlackFideId "1542656"]
[WhiteElo "2154"]
[BlackElo "2392"]
[WhiteTitle "WGM"]
[BlackTitle "FM"]
[WhiteClock "0:09:01"]
[BlackClock "0:03:24"]
[Variant "Standard"]
[EndDate "2026.07.29"]
[EndTime "16:54:05"]

1. e4 {[%clk 1:30:30]}  e5 {[%clk 1:29:21]} 2. Nf3 {[%clk 1:31:13]}  Nc6 {[%clk 1:29:42]} 3. Bc4 {[%clk 1:31:27]}  Nf6 {[%clk 1:29:48]}
4. d3 {[%clk 1:31:44]}  Bc5 {[%clk 1:29:45]} 5. c3 {[%clk 1:31:59]}  d6 {[%clk 1:29:44]} 6. Nbd2 {[%clk 1:32:00]}  O-O {[%clk 1:29:18]}
7. O-O {[%clk 1:30:07]}  a5 {[%clk 1:29:28]} 8. Re1 {[%clk 1:28:29]}  Ba7 {[%clk 1:29:02]} 9. Nf1 {[%clk 1:27:56]}  Be6 {[%clk 1:28:54]}
10. Bb5 {[%clk 1:22:30]}  Ne7 {[%clk 1:28:54]} 11. Ng3 {[%clk 1:21:34]}  c6 {[%clk 1:27:21]} 12. Ba4 {[%clk 1:21:40]}  Ng6 {[%clk 1:27:28]}
13. Be3 {[%clk 1:19:05]}  Bxe3 {[%clk 1:22:33]} 14. fxe3 {[%clk 1:18:16]}  d5 {[%clk 1:18:18]} 15. exd5 {[%clk 1:13:46]}  cxd5 {[%clk 1:11:37]}
16. Bb3 {[%clk 1:12:00]}  Qb6 {[%clk 1:06:04]} 17. Qd2 {[%clk 0:57:42]}  h6 {[%clk 0:58:31]} 18. Kh1 {[%clk 0:53:16]}  Rad8 {[%clk 0:49:38]}
19. Rf1 {[%clk 0:51:45]}  Nd7 {[%clk 0:47:59]} 20. d4 {[%clk 0:44:38]}  e4 {[%clk 0:46:38]} 21. Ng1 {[%clk 0:44:56]}  f5 {[%clk 0:44:21]}
22. Nh3 {[%clk 0:44:13]}  Qd6 {[%clk 0:41:33]} 23. Qe2 {[%clk 0:39:16]}  Rf7 {[%clk 0:36:52]} 24. c4 {[%clk 0:33:56]}  dxc4 {[%clk 0:29:51]}
25. Bxc4 {[%clk 0:34:19]}  Nb6 {[%clk 0:28:29]} 26. b3 {[%clk 0:31:26]}  Nd5 {[%clk 0:24:46]} 27. Bxd5 {[%clk 0:20:55]}  Qxd5 {[%clk 0:25:04]}
28. Nh5 {[%clk 0:21:13]}  Bd7 {[%clk 0:22:38]} 29. N3f4 {[%clk 0:20:29]}  Nxf4 {[%clk 0:21:02]} 30. Nxf4 {[%clk 0:20:54]}  Qd6 {[%clk 0:21:10]}
31. Qh5 {[%clk 0:20:35]}  Rf6 {[%clk 0:19:51]} 32. Qe2 {[%clk 0:17:17]}  g5 {[%clk 0:16:15]} 33. Nh5 {[%clk 0:15:29]}  Rf7 {[%clk 0:16:19]}
34. Rac1 {[%clk 0:13:43]}  b6 {[%clk 0:15:00]} 35. Ng3 {[%clk 0:10:22]}  Qg6 {[%clk 0:10:14]} 36. Qc4 {[%clk 0:09:45]}  Rdf8 {[%clk 0:08:04]}
37. Qd5 {[%clk 0:09:40]}  h5 {[%clk 0:07:54]} 38. Rc7 {[%clk 0:09:28]}  Be6 {[%clk 0:06:46]} 39. Rc6 {[%clk 0:09:36]}  Rf6 {[%clk 0:05:35]}
40. Qe5 {[%clk 0:09:38]}  h4 {[%clk 0:04:45]} 41. Nh5 {[%clk 0:08:05]}  Qxh5 {[%clk 0:04:41]} 42. Rxe6 {[%clk 0:08:31]}  Qe2 {[%clk 0:04:31]}
43. Rg1 {[%clk 0:08:32]}  Kg7 {[%clk 0:04:25]} 44. Rxf6 {[%clk 0:08:23]}  Rxf6 {[%clk 0:04:41]} 45. Rc1 {[%clk 0:07:36]}  Kg6 {[%clk 0:01:51]}
46. Qe8+ {[%clk 0:07:48]}  Kh6 {[%clk 0:02:15]} 47. Qh8+ {[%clk 0:07:57]}  Kg6 {[%clk 0:02:40]} 48. Qe8+ {[%clk 0:08:22]}  Kh6 {[%clk 0:03:02]}
49. Qh8+ {[%clk 0:08:42]}  Kg6 {[%clk 0:03:24]} 50. Qe8+ {[%clk 0:09:01]} 1/2-1/2

[Event "7th Paul Keres Memorial Festival 2026 Classic A"]
[Site "ESTONIA Resort Hotel & Spa conference center, EE"]
[Date "2026.07.29"]
[Round "5"]
[White "Krivonosov, Oleg"]
[Black "Povilaitis, Tomas"]
[Result "1/2-1/2"]
[Board "9"]
[TimeControl "5400+30"]
[WhiteFideId "11600349"]
[BlackFideId "12811700"]
[WhiteElo "2290"]
[BlackElo "2150"]
[WhiteTitle "IM"]
[WhiteClock "0:43:44"]
[BlackClock "0:21:47"]
[Variant "Standard"]
[EndDate "2026.07.29"]
[EndTime "15:49:23"]

1. d4 {[%clk 1:30:50]}  d5 {[%clk 1:30:36]} 2. c4 {[%clk 1:30:50]}  e6 {[%clk 1:30:36]} 3. Nc3 {[%clk 1:30:50]}  Nf6 {[%clk 1:30:36]}
4. Nf3 {[%clk 1:30:50]}  Be7 {[%clk 1:30:36]} 5. Bg5 {[%clk 1:30:50]}  h6 {[%clk 1:30:36]} 6. Bh4 {[%clk 1:30:50]}  O-O {[%clk 1:30:36]}
7. e3 {[%clk 1:30:50]}  Ne4 {[%clk 1:25:24]} 8. Bxe7 {[%clk 1:32:20]}  Qxe7 {[%clk 1:25:46]} 9. Qc2 {[%clk 1:32:06]}  Nxc3 {[%clk 1:26:01]}
10. Qxc3 {[%clk 1:32:17]}  c6 {[%clk 1:17:47]} 11. Bd3 {[%clk 1:31:56]}  Nd7 {[%clk 1:18:02]} 12. O-O {[%clk 1:31:47]}  dxc4 {[%clk 1:15:56]}
13. Bxc4 {[%clk 1:30:44]}  b6 {[%clk 1:12:29]} 14. Rac1 {[%clk 1:28:09]}  Bb7 {[%clk 1:12:52]} 15. Rfd1 {[%clk 1:26:54]}  c5 {[%clk 1:12:08]}
16. Be2 {[%clk 1:21:57]}  Rfc8 {[%clk 1:07:28]} 17. dxc5 {[%clk 1:18:18]}  Nxc5 {[%clk 1:07:15]} 18. h3 {[%clk 1:10:03]}  Ne4 {[%clk 1:03:25]}
19. Qe5 {[%clk 1:07:56]}  Qf6 {[%clk 1:03:09]} 20. Qxf6 {[%clk 1:06:49]}  Nxf6 {[%clk 1:03:36]} 21. Ne5 {[%clk 1:05:43]}  Kf8 {[%clk 0:57:41]}
22. f3 {[%clk 1:04:41]}  Rxc1 {[%clk 0:52:12]} 23. Rxc1 {[%clk 1:05:01]}  Rc8 {[%clk 0:52:00]} 24. Rxc8+ {[%clk 1:04:21]}  Bxc8 {[%clk 0:53:08]}
25. e4 {[%clk 1:04:10]}  Bb7 {[%clk 0:51:19]} 26. Kf2 {[%clk 1:03:54]}  Ke7 {[%clk 0:51:00]} 27. Ke3 {[%clk 1:03:17]}  Ne8 {[%clk 0:49:50]}
28. f4 {[%clk 1:01:01]}  Nd6 {[%clk 0:48:35]} 29. Bd3 {[%clk 0:59:49]}  f5 {[%clk 0:32:41]} 30. Ng6+ {[%clk 0:58:53]}  Kf7 {[%clk 0:34:54]}
31. e5 {[%clk 0:58:53]}  Nc8 {[%clk 0:34:54]} 32. Nh4 {[%clk 0:58:53]}  g5 {[%clk 0:34:54]} 33. Nf3 {[%clk 0:58:53]}  gxf4+ {[%clk 0:29:36]}
34. Kxf4 {[%clk 0:43:59]}  Ne7 {[%clk 0:28:18]} 35. Nh4 {[%clk 0:44:14]}  Bd5 {[%clk 0:27:05]} 36. a3 {[%clk 0:43:45]}  Nc6 {[%clk 0:25:51]}
37. g4 {[%clk 0:43:35]}  fxg4 {[%clk 0:26:14]} 38. hxg4 {[%clk 0:43:44]}  Nd4 {[%clk 0:21:47]} 1/2-1/2

[Event "7th Paul Keres Memorial Festival 2026 Classic A"]
[Site "ESTONIA Resort Hotel & Spa conference center, EE"]
[Date "2026.07.29"]
[Round "5"]
[White "Du, Yuxin"]
[Black "Ternault, Mathieu"]
[Result "0-1"]
[Board "10"]
[TimeControl "5400+30"]
[WhiteFideId "8610282"]
[BlackFideId "20641532"]
[WhiteElo "2019"]
[BlackElo "2281"]
[BlackTitle "FM"]
[WhiteClock "0:00:36"]
[BlackClock "0:01:02"]
[Variant "Standard"]
[EndDate "2026.07.29"]
[EndTime "16:50:15"]

1. Nf3 {[%clk 1:29:06]}  Nf6 {[%clk 1:29:57]} 2. g3 {[%clk 1:29:29]}  g6 {[%clk 1:29:46]} 3. Bg2 {[%clk 1:29:53]}  Bg7 {[%clk 1:30:11]}
4. O-O {[%clk 1:30:16]}  O-O {[%clk 1:29:42]} 5. d4 {[%clk 1:30:12]}  Nc6 {[%clk 1:29:55]} 6. Nc3 {[%clk 1:23:20]}  d6 {[%clk 1:29:15]}
7. e4 {[%clk 1:23:28]}  Bg4 {[%clk 1:26:33]} 8. Be3 {[%clk 1:22:53]}  e5 {[%clk 1:23:55]} 9. d5 {[%clk 1:21:38]}  Nd4 {[%clk 1:18:33]}
10. Bxd4 {[%clk 1:19:10]}  exd4 {[%clk 1:17:57]} 11. Qxd4 {[%clk 1:18:29]}  Re8 {[%clk 1:14:40]} 12. Qd3 {[%clk 1:11:34]}  Nd7 {[%clk 1:06:11]}
13. Nd2 {[%clk 1:05:43]}  Nc5 {[%clk 1:01:10]} 14. Qe3 {[%clk 1:02:46]}  c6 {[%clk 0:59:48]} 15. Qf4 {[%clk 0:52:24]}  h5 {[%clk 0:37:12]}
16. Nc4 {[%clk 0:39:07]}  Bf8 {[%clk 0:25:30]} 17. h3 {[%clk 0:28:38]}  Bc8 {[%clk 0:23:59]} 18. a4 {[%clk 0:22:14]}  Qc7 {[%clk 0:18:10]}
19. a5 {[%clk 0:13:45]}  Nd7 {[%clk 0:17:30]} 20. Rfd1 {[%clk 0:10:20]}  Ne5 {[%clk 0:17:08]} 21. Nxe5 {[%clk 0:10:17]}  Rxe5 {[%clk 0:16:09]}
22. Qd2 {[%clk 0:09:57]}  Bd7 {[%clk 0:15:49]} 23. f4 {[%clk 0:09:58]}  Ree8 {[%clk 0:16:01]} 24. Kh2 {[%clk 0:09:49]}  c5 {[%clk 0:14:58]}
25. e5 {[%clk 0:06:20]}  dxe5 {[%clk 0:12:33]} 26. d6 {[%clk 0:06:38]}  Qd8 {[%clk 0:12:22]} 27. fxe5 {[%clk 0:01:28]}  Rxe5 {[%clk 0:12:13]}
28. Bxb7 {[%clk 0:01:24]}  Rb8 {[%clk 0:11:48]} 29. a6 {[%clk 0:01:48]}  h4 {[%clk 0:10:28]} 30. g4 {[%clk 0:01:22]}  Qb6 {[%clk 0:08:31]}
31. Qf4 {[%clk 0:00:34]}  Re6 {[%clk 0:02:32]} 32. Ne4 {[%clk 0:00:47]}  Bg7 {[%clk 0:02:05]} 33. Kh1 {[%clk 0:00:33]}  Rxb7 {[%clk 0:01:46]}
34. Ng5 {[%clk 0:00:38]}  Rf6 {[%clk 0:01:17]} 35. Qe3 {[%clk 0:00:36]}  Rb8 {[%clk 0:01:02]} 0-1

[Event "7th Paul Keres Memorial Festival 2026 Classic A"]
[Site "ESTONIA Resort Hotel & Spa conference center, EE"]
[Date "2026.07.30"]
[Round "6"]
[White "Zeng, Chongsheng"]
[Black "Kazakouski, Valery"]
[Result "1/2-1/2"]
[Board "1"]
[TimeControl "5400+30"]
[WhiteFideId "8603847"]
[BlackFideId "13507443"]
[WhiteElo "2565"]
[BlackElo "2594"]
[WhiteTitle "GM"]
[BlackTitle "GM"]
[WhiteClock "0:10:37"]
[BlackClock "0:32:30"]
[Variant "Standard"]
[EndDate "2026.07.30"]
[EndTime "16:10:49"]

1. d4 {[%clk 1:28:59]}  Nf6 {[%clk 1:30:53]} 2. c4 {[%clk 1:29:26]}  e6 {[%clk 1:31:16]} 3. Nf3 {[%clk 1:29:49]}  Bb4+ {[%clk 1:31:40]}
4. Bd2 {[%clk 1:29:31]}  Qe7 {[%clk 1:32:02]} 5. g3 {[%clk 1:26:02]}  Nc6 {[%clk 1:32:23]} 6. Nc3 {[%clk 1:26:13]}  Bxc3 {[%clk 1:32:45]}
7. Bxc3 {[%clk 1:26:38]}  Ne4 {[%clk 1:33:07]} 8. Rc1 {[%clk 1:26:31]}  O-O {[%clk 1:33:20]} 9. Bg2 {[%clk 1:25:07]}  d6 {[%clk 1:33:00]}
10. d5 {[%clk 1:24:45]}  Nb8 {[%clk 1:32:57]} 11. dxe6 {[%clk 1:24:28]}  fxe6 {[%clk 1:33:17]} 12. O-O {[%clk 1:24:34]}  a5 {[%clk 1:33:33]}
13. Be1 {[%clk 1:21:18]}  Nc5 {[%clk 1:33:18]} 14. Nd4 {[%clk 1:18:30]}  Nbd7 {[%clk 1:32:04]} 15. Nb5 {[%clk 1:13:38]}  Nf6 {[%clk 1:31:59]}
16. Rc3 {[%clk 1:14:05]}  Ra6 {[%clk 1:19:41]} 17. Ra3 {[%clk 1:09:44]}  b6 {[%clk 1:19:01]} 18. Re3 {[%clk 1:00:34]}  Ng4 {[%clk 1:11:13]}
19. Rc3 {[%clk 0:59:36]}  e5 {[%clk 1:10:47]} 20. h3 {[%clk 1:00:03]}  Nf6 {[%clk 1:11:03]} 21. Re3 {[%clk 1:00:32]}  Bb7 {[%clk 1:10:50]}
22. Bxb7 {[%clk 0:58:01]}  Nxb7 {[%clk 1:11:12]} 23. f4 {[%clk 0:56:56]}  c6 {[%clk 1:09:36]} 24. Nc3 {[%clk 0:52:13]}  Raa8 {[%clk 1:03:00]}
25. fxe5 {[%clk 0:39:22]}  dxe5 {[%clk 1:01:49]} 26. Rf5 {[%clk 0:39:47]}  Nd7 {[%clk 0:49:05]} 27. Rxf8+ {[%clk 0:29:52]}  Rxf8 {[%clk 0:49:25]}
28. Rf3 {[%clk 0:30:05]}  Rd8 {[%clk 0:46:08]} 29. Ne4 {[%clk 0:26:30]}  Ndc5 {[%clk 0:42:20]} 30. Qc2 {[%clk 0:26:48]}  Ne6 {[%clk 0:42:35]}
31. Bf2 {[%clk 0:13:08]}  Nd4 {[%clk 0:41:45]} 32. Bxd4 {[%clk 0:13:36]}  exd4 {[%clk 0:42:01]} 33. h4 {[%clk 0:14:03]}  h6 {[%clk 0:38:41]}
34. Qd3 {[%clk 0:13:34]}  c5 {[%clk 0:35:35]} 35. Rf4 {[%clk 0:13:23]}  Nd6 {[%clk 0:33:38]} 36. Nxd6 {[%clk 0:13:37]}  Rxd6 {[%clk 0:33:30]}
37. Re4 {[%clk 0:10:37]}  Re6 {[%clk 0:32:30]} 1/2-1/2

[Event "7th Paul Keres Memorial Festival 2026 Classic A"]
[Site "ESTONIA Resort Hotel & Spa conference center, EE"]
[Date "2026.07.30"]
[Round "6"]
[White "Laurusas, Tomas"]
[Black "Harikrishnan.A.Ra"]
[Result "1/2-1/2"]
[Board "2"]
[TimeControl "5400+30"]
[WhiteFideId "12803731"]
[BlackFideId "5081483"]
[WhiteElo "2511"]
[BlackElo "2519"]
[WhiteTitle "GM"]
[BlackTitle "GM"]
[WhiteClock "0:01:11"]
[BlackClock "0:12:17"]
[Variant "Standard"]
[EndDate "2026.07.30"]
[EndTime "18:12:56"]

1. d4 {[%clk 1:29:48]}  d5 {[%clk 1:30:48]} 2. c4 {[%clk 1:29:50]}  c6 {[%clk 1:31:13]} 3. Nf3 {[%clk 1:30:12]}  Nf6 {[%clk 1:31:38]}
4. Nc3 {[%clk 1:30:29]}  dxc4 {[%clk 1:32:02]} 5. a4 {[%clk 1:30:41]}  Bf5 {[%clk 1:32:27]} 6. Ne5 {[%clk 1:30:53]}  Nbd7 {[%clk 1:32:51]}
7. Nxc4 {[%clk 1:31:16]}  Qc7 {[%clk 1:33:16]} 8. g3 {[%clk 1:31:17]}  e5 {[%clk 1:33:41]} 9. dxe5 {[%clk 1:31:40]}  Nxe5 {[%clk 1:34:06]}
10. Bf4 {[%clk 1:32:02]}  Nfd7 {[%clk 1:34:31]} 11. Bg2 {[%clk 1:32:24]}  g5 {[%clk 1:34:55]} 12. Ne3 {[%clk 1:32:45]}  gxf4 {[%clk 1:35:19]}
13. Nxf5 {[%clk 1:33:11]}  O-O-O {[%clk 1:35:39]} 14. Qc2 {[%clk 1:33:31]}  fxg3 {[%clk 1:36:03]} 15. hxg3 {[%clk 1:33:54]}  Kb8 {[%clk 1:36:25]}
16. O-O-O {[%clk 1:33:49]}  a5 {[%clk 1:36:05]} 17. Kb1 {[%clk 1:31:41]}  Nb6 {[%clk 1:32:41]} 18. Rxd8+ {[%clk 1:10:23]}  Qxd8 {[%clk 1:33:04]}
19. f4 {[%clk 1:04:29]}  Nec4 {[%clk 1:33:23]} 20. e4 {[%clk 1:04:51]}  Bb4 {[%clk 1:32:54]} 21. Rd1 {[%clk 0:43:52]}  Qc7 {[%clk 1:32:54]}
22. Bf1 {[%clk 0:20:59]}  Rd8 {[%clk 1:31:29]} 23. Rd3 {[%clk 0:19:39]}  f6 {[%clk 1:27:32]} 24. Be2 {[%clk 0:16:29]}  Rxd3 {[%clk 1:03:16]}
25. Qxd3 {[%clk 0:16:31]}  Qf7 {[%clk 1:03:18]} 26. Bd1 {[%clk 0:16:19]}  Qd7 {[%clk 0:53:36]} 27. Be2 {[%clk 0:03:55]}  Qe8 {[%clk 0:48:11]}
28. Bf3 {[%clk 0:01:55]}  Qf8 {[%clk 0:44:59]} 29. Kc2 {[%clk 0:00:42]}  Qc5 {[%clk 0:12:48]} 30. Qd8+ {[%clk 0:01:11]}  Ka7 {[%clk 0:12:17]}
31. Kb1 {[%clk 0:01:11]} 1/2-1/2